bitfinex/quotes_SOLUSD_20250424
["timestamp","ask_amount","ask_price","bid_price","bid_amount"]
[1745516163684,82.7,150.13,150.11,17.01502547]
[1745516163879,82.7,150.13,150.12,17.01502547]
[1745516164695,82.7,150.13,150.1,17.01502547]
[1745516164900,89.36106235,150.13,150.1,17.01502547]
[1745516165610,82.7,150.13,150.11,17.01502547]
[1745516167911,23.67522438,150.15,150.11,17.01502547]
[1745516168213,106.37477535,150.16,150.11,17.01502547]
[1745516168399,82.7,150.16,150.12,17.01502547]
[1745516168798,99.71502547,150.16,150.12,17.01502547]
[1745516169003,106.3746577,150.16,150.11,17.01502547]
[1745516169304,17.01502547,150.15,150.08,26.0]
[1745516169610,17.01502547,150.15,150.11,17.01502547]
[1745516170004,23.67521113,150.15,150.11,17.01502547]
[1745516170621,106.37459353,150.16,150.11,17.01502547]
[1745516172019,17.01502547,150.15,150.11,17.01502547]
[1745516172320,17.01502547,150.15,150.1,17.01502547]
[1745516172613,17.01502547,150.13,150.08,43.01502547]
[1745516172823,17.01502547,150.14,150.09,17.01502547]
[1745516172990,17.01502547,150.13,150.08,43.01502547]
[1745516173416,10.90521664,150.12,150.08,26.0]
[1745516173827,10.90521664,150.12,150.05,0.063]
[1745516173828,10.90521664,150.09,150.05,0.063]
[1745516174000,17.56854225,150.08,150.05,0.063]
[1745516174193,10.90521664,150.09,150.05,10.96821664]
[1745516174398,108.10881429,150.11,150.06,10.90521664]
[1745516174614,106.51671429,150.11,150.06,10.90521664]
[1745516175327,10.90521664,150.1,150.05,26.063]
[1745516175490,17.04470315,150.1,150.05,43.10770315]
[1745516176719,23.70699752,150.1,150.05,43.10770315]
[1745516177118,99.74470315,150.11,150.07,17.04470315]
[1745516177419,82.7,150.11,150.07,17.04470315]
[1745516177793,82.7,150.11,150.08,17.04470315]
[1745516177998,82.7,150.11,150.07,17.04470315]
[1745516178428,82.7,150.11,150.08,17.04470315]
[1745516178794,82.7,150.11,150.09,17.04470315]
[1745516179024,82.7,150.14,150.1,17.04470315]
[1745516179324,125.74470315,150.16,150.12,17.04470315]
[1745516180201,15.08,150.17,150.14,17.04470315]
[1745516180532,15.08,150.17,150.15,17.04470315]
[1745516180834,82.7,150.2,150.16,17.04470315]
[1745516181010,106.40253543,150.2,150.16,17.04470315]
[1745516181203,82.7,150.2,150.16,17.04470315]
[1745516181403,99.74470315,150.2,150.16,17.04470315]
[1745516181603,106.40252991,150.2,150.15,17.04470315]
[1745516182831,82.7,150.2,150.16,17.04470315]
[1745516183044,0.03,150.23,150.19,17.04470315]
[1745516183328,0.03,150.23,150.2,17.04470315]
[1745516183540,0.03,150.23,150.21,17.04470315]
[1745516183712,0.03,150.23,150.22,17.04470315]
[1745516184529,0.03,150.23,150.21,17.04470315]
[1745516184729,0.03,150.23,150.19,17.04470315]
[1745516185238,0.03,150.23,150.2,17.04470315]
[1745516187641,0.03,150.23,150.19,17.04470315]
[1745516189020,6.68646009,150.23,150.19,17.04470315]
[1745516189722,6.68646009,150.23,150.18,17.04470315]
[1745516189723,23.73116324,150.23,150.18,17.04470315]
[1745516190850,40.37231347,150.23,150.18,17.04470315]
[1745516191049,17.04470315,150.22,150.17,17.04470315]
[1745516191423,6.65734638,150.21,150.17,17.04470315]
[1745516191629,17.04470315,150.2,150.16,17.04470315]
[1745516191828,17.04470315,150.2,150.14,26.0]
[1745516192022,17.04470315,150.2,150.16,17.04470315]
[1745516192435,23.70204953,150.21,150.17,17.04470315]
[1745516192953,6.65734638,150.21,150.17,17.04470315]
[1745516193549,23.70204953,150.21,150.17,17.04470315]
[1745516195558,6.65734638,150.21,150.17,17.04470315]
[1745516196955,23.70204953,150.21,150.16,17.04470315]
[1745516197157,17.04470315,150.2,150.16,17.04470315]
[1745516197358,10.89363158,150.2,150.16,10.89363158]
[1745516197554,10.89363158,150.2,150.15,10.89363158]
[1745516197555,93.59363158,150.2,150.15,10.89363158]
[1745516198156,6.6582329,150.19,150.15,10.89363158]
[1745516199541,89.35797063,150.2,150.16,10.89363158]
[1745516200651,82.7,150.2,150.17,10.89363158]
[1745516201858,82.7,150.2,150.18,10.89363158]
[1745516202063,82.7,150.2,150.19,10.89363158]
[1745516202444,82.7,150.2,150.18,10.89363158]
[1745516202840,82.7,150.2,150.17,10.89363158]
[1745516203429,6.65739956,150.21,150.17,10.89363158]
[1745516203630,100.25074229,150.22,150.17,10.89363158]
[1745516203829,89.35711071,150.22,150.18,10.89363158]
[1745516204950,89.35711071,150.22,150.17,10.89363158]
[1745516205134,100.25074229,150.22,150.17,10.89363158]
[1745516206056,10.89363158,150.2,150.12,1.74376157]
[1745516206284,10.89363158,150.19,150.14,36.89363158]
[1745516206862,17.55218895,150.19,150.14,36.89363158]
[1745516207459,6.65855737,150.19,150.15,10.89363158]
[1745516207761,6.65798932,150.2,150.16,10.89363158]
[1745516207963,17.5516209,150.2,150.14,26.0]
[1745516208155,17.5516209,150.2,150.15,10.89363158]
[1745516208542,6.65798932,150.2,150.16,10.89363158]
[1745516208740,115.31116619,150.21,150.16,10.89363158]
[1745516208938,82.7,150.21,150.2,10.89363158]
[1745516209140,17.58013197,150.23,150.18,10.89363158]
[1745516210233,17.58013197,150.23,150.19,10.89363158]
[1745516210433,17.58013197,150.23,150.18,10.89363158]
[1745516210966,17.55128577,150.21,150.16,10.89363158]
[1745516211351,17.55128577,150.21,150.15,10.89363158]
[1745516211352,10.89363158,150.2,150.15,10.89363158]
[1745516212369,17.55128577,150.21,150.16,10.89363158]
[1745516212744,6.65765419,150.21,150.17,10.89363158]
[1745516213277,100.25073179,150.22,150.17,10.89363158]
[1745516213450,106.37570729,150.22,150.17,17.01860708]
[1745516213647,0.03,150.23,150.2,17.01860708]
[1745516214065,0.03,150.23,150.22,17.01860708]
[1745516215844,0.03,150.23,150.21,26.0]
[1745516216043,0.03,150.23,150.21,17.01860708]
[1745516218075,0.03,150.23,150.22,17.01860708]
[1745516220442,0.03,150.23,150.19,27.5189]
[1745516220647,0.03,150.23,150.21,17.01860708]
[1745516221251,0.03,150.23,150.22,17.01860708]
[1745516224486,0.03,150.23,150.22,26.0]
[1745516224672,0.03,150.23,150.22,17.01860708]
[1745516224859,0.03,150.23,150.21,43.01860708]
[1745516225056,0.03,150.23,150.21,26.0]
[1745516225258,0.03,150.23,150.2,17.01860708]
[1745516225466,0.03,150.23,150.17,18.64964886]
[1745516225669,0.03,150.23,150.2,17.01860708]
[1745516225982,0.03,150.23,150.21,17.01860708]
[1745516227661,0.03,150.23,150.22,17.01860708]
[1745516227981,0.03,150.23,150.22,43.01860708]
[1745516230260,0.03,150.23,150.22,68.46732071]
[1745516230459,0.03,150.23,150.22,61.81041751]
[1745516230665,0.03,150.23,150.22,68.46732071]
[1745516230872,0.03,150.23,150.22,61.81041751]
[1745516232397,0.03,150.23,150.22,44.79181043]
[1745516232562,0.03,150.23,150.22,61.81041751]
[1745516235396,0.03,150.23,150.22,43.01860708]
[1745516235698,0.03,150.23,150.2,0.14216157]
[1745516235699,0.03,150.23,150.17,18.64964886]
[1745516235865,0.03,150.23,150.19,17.01860708]
[1745516237584,0.03,150.23,150.21,17.01860708]
[1745516238376,0.03,150.23,150.22,17.01860708]
[1745516239569,0.03,150.23,150.22,23.67551028]
[1745516239770,0.03,150.23,150.22,17.01860708]
[1745516241993,0.03,150.23,150.22,23.67551028]
[1745516242177,0.03,150.23,150.22,17.01860708]
[1745516245393,0.03,150.23,150.21,43.01860708]
[1745516245580,0.03,150.23,150.22,17.01860708]
[1745516248383,0.03,150.23,150.21,17.01860708]
[1745516248698,0.03,150.23,150.2,43.01860708]
[1745516249199,0.03,150.23,150.2,26.0]
[1745516249791,0.03,150.23,150.2,43.01860708]
[1745516249994,0.03,150.23,150.21,17.01860708]
[1745516251184,0.03,150.23,150.2,43.01860708]
[1745516251995,0.03,150.23,150.22,17.01860708]
[1745516257398,0.03,150.23,150.22,36.8836381]
[1745516258501,0.03,150.23,150.21,26.0]
[1745516258704,0.03,150.23,150.22,10.8836381]
[1745516261209,0.03,150.23,150.21,26.0]
[1745516261393,0.03,150.23,150.22,10.8836381]
[1745516263901,0.03,150.23,150.22,13.3744467]
[1745516266510,0.03,150.23,150.22,39.3744467]
[1745516270418,0.03,150.23,150.22,46.0313499]
[1745516270913,0.03,150.23,150.22,39.3744467]
[1745516273216,0.03,150.23,150.22,46.0313499]
[1745516273409,0.03,150.26,150.25,26.0]
[1745516273715,0.03,150.26,150.25,36.8836381]
[1745516274110,0.03,150.26,150.25,39.3744467]
[1745516274601,0.03,150.26,150.25,44.35340752]
[1745516278707,0.03,150.26,150.25,7.46976942]
[1745516279423,0.03,150.26,150.25,2.4908086]
[1745516279811,17.2667381,150.26,150.25,2.4908086]
[1745516280019,17.2667381,150.26,150.21,26.0]
[1745516280199,10.8836381,150.25,150.21,26.0]
[1745516280399,99.9667381,150.26,150.21,36.8836381]
[1745516281136,99.9667381,150.26,150.22,13.37256067]
[1745516281328,89.0831,150.26,150.23,10.8836381]
[1745516281499,89.0831,150.26,150.24,10.8836381]
[1745516281699,89.0831,150.26,150.25,10.8836381]
[1745516281700,82.73,150.26,150.25,10.8836381]
[1745516281896,0.03,150.26,150.25,10.8836381]
[1745516283126,0.03,150.26,150.22,10.8836381]
[1745516283438,6.68525559,150.26,150.22,10.8836381]
[1745516284028,6.68525559,150.26,150.23,2.48953241]
[1745516284603,17.56889369,150.26,150.23,2.48953241]
[1745516284925,10.8836381,150.24,150.2,10.8836381]
[1745516285608,6.65646009,150.23,150.2,10.8836381]
[1745516286039,6.65646009,150.23,150.21,13.37322906]
[1745516286535,6.65646009,150.23,150.22,2.48959096]
[1745516287629,6.65601703,150.24,150.22,2.48959096]
[1745516288135,6.65601703,150.24,150.22,13.37322906]
[1745516288511,6.65601703,150.24,150.23,2.48959096]
[1745516289728,101.82305513,150.24,150.23,2.48959096]
[1745516290312,118.46309772,150.24,150.18,26.0]
[1745516290514,10.8836381,150.22,150.18,26.0]
[1745516290831,107.57945962,150.24,150.16,36.9466381]
[1745516290832,10.8836381,150.21,150.16,36.9466381]
[1745516291345,10.8836381,150.2,150.17,2.48889664]
[1745516291832,6.6582329,150.19,150.17,2.48889664]
[1745516292130,6.6582329,150.19,150.16,0.063]
[1745516292920,6.6582329,150.19,150.16,10.9466381]
[1745516293920,6.65778961,150.2,150.16,10.9466381]
[1745516300143,82.7,150.23,150.19,10.8836381]
[1745516300351,6.65697505,150.22,150.19,10.8836381]
[1745516300848,6.65697505,150.22,150.18,10.8836381]
[1745516301938,6.65697505,150.22,150.19,10.8836381]
[1745516303148,100.24030783,150.23,150.19,10.8836381]
[1745516303450,82.73,150.26,150.22,10.8836381]
[1745516303759,0.03,150.26,150.25,10.8836381]
[1745516307623,0.03,150.26,150.25,29.67544853]
[1745516309162,0.03,150.26,150.25,36.33102257]
[1745516310471,0.03,150.26,150.25,37.87742257]
[1745516311659,0.03,150.27,150.26,51.44694153]
[1745516311836,0.03,150.27,150.26,62.33057963]
[1745516313357,0.03,150.28,150.26,36.33057963]
[1745516313573,0.03,150.28,150.27,55.67544853]
[1745516315851,0.03,150.28,150.27,62.33013675]
[1745516318778,0.03,150.3,150.28,18.79181043]
[1745516318948,0.03,150.3,150.29,55.67544853]
[1745516319773,0.03,150.33,150.32,55.67544853]
[1745516320376,0.03,150.35,150.33,18.79181043]
[1745516321150,0.03,150.35,150.33,28.71543335]
[1745516321378,0.03,150.35,150.34,42.96979725]
[1745516323268,0.03,150.35,150.34,68.4131974]
[1745516325666,0.03,150.35,150.34,61.76160768]
[1745516327279,0.03,150.37,150.35,18.79181043]
[1745516327448,0.03,150.37,150.36,16.96979725]
[1745516327771,0.03,150.37,150.36,35.76160768]
[1745516328146,0.03,150.38,150.37,18.79181043]
[1745516328382,0.03,150.39,150.37,35.76160768]
[1745516328560,0.03,150.39,150.38,61.76160768]
[1745516330180,0.03,150.39,150.38,68.41142813]
[1745516330561,0.03,150.39,150.38,42.41142813]
[1745516330883,0.03,150.39,150.38,59.38122538]
[1745516332482,0.03,150.4,150.39,18.79181043]
[1745516332666,0.03,150.42,150.41,44.79181043]
[1745516332854,0.03,150.42,150.41,61.76160768]
[1745516334180,0.03,150.42,150.41,68.41010179]
[1745516335875,0.03,150.42,150.41,61.76160768]
[1745516336175,0.03,150.42,150.36,112.0928393]
[1745516336495,0.03,150.42,150.4,16.96979725]
[1745516336696,0.03,150.42,150.39,16.96979725]
[1745516337263,0.03,150.42,150.38,26.0]
[1745516337462,0.03,150.42,150.39,16.96979725]
[1745516337780,0.03,150.42,150.38,42.96979725]
[1745516338490,16.99979725,150.42,150.38,16.96979725]
[1745516338692,0.03,150.42,150.38,16.96979725]
[1745516339382,0.03,150.42,150.37,18.64964886]
[1745516339383,0.03,150.42,150.39,16.96979725]
[1745516340390,16.99979725,150.42,150.37,16.96979725]
[1745516340691,16.96979725,150.41,150.36,40.96]
[1745516340870,16.96979725,150.41,150.36,42.96979725]
[1745516341194,16.96979725,150.41,150.37,16.96979725]
[1745516341364,16.99979725,150.42,150.37,16.96979725]
[1745516341567,16.96979725,150.39,150.34,26.0]
[1745516341765,16.96979725,150.39,150.35,16.96979725]
[1745516342180,23.47619725,150.38,150.31,14.96]
[1745516342463,23.62067688,150.36,150.31,26.0]
[1745516342659,25.13851956,150.37,150.32,16.96979725]
[1745516343392,16.96979725,150.36,150.31,16.96979725]
[1745516346371,16.96979725,150.35,150.31,26.0]
[1745516347788,23.62108845,150.35,150.31,26.0]
[1745516350794,23.62108845,150.35,150.31,42.96979725]
[1745516350999,16.96979725,150.34,150.31,26.0]
[1745516351195,16.96979725,150.34,150.3,16.96979725]
[1745516351709,6.65203219,150.33,150.29,16.96979725]
[1745516351893,23.62182944,150.33,150.28,42.96979725]
[1745516352203,16.96979725,150.3,150.26,0.063]
[1745516352374,18.59919725,150.31,150.26,43.03279725]
[1745516352684,18.59919725,150.31,150.27,16.96979725]
[1745516353202,18.59919725,150.31,150.26,0.063]
[1745516353404,6.65335994,150.3,150.26,17.03279725]
[1745516353605,23.62315719,150.3,150.26,0.063]
[1745516353910,16.96979725,150.29,150.26,0.063]
[1745516354482,16.96979725,150.27,150.26,0.063]
[1745516354901,16.96979725,150.28,150.26,0.063]
[1745516356583,16.96979725,150.29,150.26,0.063]
[1745516356925,99.66979725,150.3,150.26,0.063]
[1745516358393,82.7,150.3,150.27,16.96979725]
[1745516358601,6.6282,150.32,150.28,16.96979725]
[1745516358788,6.6282,150.32,150.29,16.96979725]
[1745516359194,14.94,150.33,150.3,16.96979725]
[1745516359399,101.29139725,150.35,150.3,16.96979725]
[1745516359907,16.96979725,150.34,150.3,16.96979725]
[1745516360295,101.29139725,150.35,150.3,16.96979725]
[1745516360514,16.96979725,150.34,150.3,16.96979725]
[1745516360705,84.3216,150.35,150.3,16.96979725]
[1745516360909,101.29139725,150.35,150.31,16.96979725]
[1745516361094,101.29139725,150.35,150.3,16.96979725]
[1745516361595,82.7,150.35,150.33,16.96979725]
[1745516362100,82.7,150.35,150.32,16.96979725]
[1745516362308,82.7,150.35,150.31,16.96979725]
[1745516362616,23.39849725,150.36,150.31,16.96979725]
[1745516362912,23.39849725,150.36,150.32,16.96979725]
[1745516363219,23.39849725,150.36,150.31,16.96979725]
[1745516364111,30.0492201,150.36,150.31,16.96979725]
[1745516364421,23.39849725,150.36,150.32,16.96979725]
[1745516364719,30.04920274,150.36,150.31,16.96979725]
[1745516365319,23.39849725,150.36,150.31,16.96979725]
[1745516366216,6.4287,150.36,150.33,16.96979725]
[1745516366431,97.64,150.38,150.31,32.65281609]
[1745516366623,14.94,150.38,150.32,18.79181043]
[1745516366814,14.94,150.38,150.34,16.96979725]
[1745516367423,18.47619725,150.39,150.35,16.96979725]
[1745516367720,88.7885,150.4,150.37,16.96979725]
[1745516367930,82.7,150.4,150.37,16.96979725]
[1745516370535,106.31874366,150.4,150.35,42.96979725]
[1745516370728,106.31874366,150.4,150.35,16.96979725]
[1745516371535,99.66979725,150.4,150.35,16.96979725]
[1745516372328,82.7,150.4,150.36,16.96979725]
[1745516372705,106.31879982,150.4,150.35,16.96979725]
[1745516373326,16.96979725,150.39,150.34,26.0]
[1745516373517,16.96979725,150.38,150.34,42.96979725]
[1745516374235,16.96979725,150.39,150.35,16.96979725]
[1745516374421,99.66979725,150.4,150.35,16.96979725]
[1745516374622,82.7,150.4,150.36,16.96979725]
[1745516375935,99.66979725,150.4,150.36,16.96979725]
[1745516376137,16.96979725,150.39,150.35,16.96979725]
[1745516377033,16.96979725,150.39,150.34,42.96979725]
[1745516377339,16.96979725,150.38,150.34,42.96979725]
[1745516377918,23.61927639,150.39,150.34,42.96979725]
[1745516378417,16.96979725,150.39,150.34,42.96979725]
[1745516378619,106.3188526,150.4,150.35,16.96979725]
[1745516379937,106.3188526,150.4,150.34,16.96979725]
[1745516379938,16.96979725,150.39,150.34,16.96979725]
[1745516380934,16.96979725,150.38,150.34,16.96979725]
[1745516381140,16.96979725,150.38,150.33,16.96979725]
[1745516381351,16.96979725,150.38,150.34,16.96979725]
[1745516381945,23.61949387,150.39,150.34,16.96979725]
[1745516382147,23.61949387,150.39,150.35,16.96979725]
[1745516382829,106.31890992,150.4,150.35,16.96979725]
[1745516384149,23.61935684,150.39,150.35,16.96979725]
[1745516384526,23.61935684,150.39,150.34,16.96979725]
[1745516388346,82.7,150.4,150.37,16.96979725]
[1745516388949,82.7,150.4,150.35,18.79181043]
[1745516389129,82.7,150.4,150.37,16.96979725]
[1745516391150,23.64814422,150.42,150.37,16.96979725]
[1745516393244,17.54096081,150.42,150.37,10.86261384]
[1745516393455,17.54096081,150.42,150.35,18.79181043]
[1745516393650,17.54096081,150.42,150.37,10.86261384]
[1745516393845,6.67834697,150.42,150.36,10.86261384]
[1745516394042,6.67834697,150.42,150.37,10.86261384]
[1745516394247,0.03,150.42,150.38,10.86261384]
[1745516394564,0.03,150.42,150.39,10.86261384]
[1745516395254,6.67811077,150.42,150.39,10.86261384]
[1745516395438,17.54072461,150.42,150.37,10.86261384]
[1745516397658,6.67811077,150.42,150.38,10.86261384]
[1745516399751,0.03,150.42,150.39,10.86261384]
[1745516401854,0.03,150.42,150.41,10.86261384]
[1745516402652,0.03,150.42,150.41,14.2080175]
[1745516403354,0.03,150.42,150.39,18.79181043]
[1745516403559,0.03,150.42,150.4,36.86261384]
[1745516403764,0.03,150.42,150.41,10.86261384]
[1745516407460,0.03,150.42,150.4,36.86261384]
[1745516407669,0.03,150.42,150.39,10.86261384]
[1745516407960,10.89261384,150.42,150.38,10.86261384]
[1745516408563,17.54077128,150.42,150.38,10.86261384]
[1745516409360,10.89261384,150.42,150.38,10.86261384]
[1745516409663,0.03,150.42,150.38,10.86261384]
[1745516411659,0.03,150.42,150.4,10.86261384]
[1745516412069,0.03,150.42,150.39,10.86261384]
[1745516412246,0.03,150.42,150.38,10.86261384]
[1745516413067,0.03,150.42,150.39,10.86261384]
[1745516413274,0.03,150.42,150.4,10.86261384]
[1745516414777,0.03,150.42,150.39,10.86261384]
[1745516415082,0.03,150.42,150.38,10.86261384]
[1745516418377,0.03,150.42,150.39,10.86261384]
[1745516418563,6.67808215,150.42,150.39,10.86261384]
[1745516418875,0.03,150.42,150.39,10.86261384]
[1745516419044,0.03,150.42,150.4,10.86261384]
[1745516419675,0.03,150.42,150.39,10.86261384]
[1745516420373,0.03,150.42,150.4,10.86261384]
[1745516420671,0.03,150.42,150.41,10.86261384]
[1745516421247,0.03,150.42,150.41,29.65442427]
[1745516421753,0.03,150.42,150.41,55.65442427]
[1745516422166,0.03,150.44,150.42,18.79181043]
[1745516422357,0.03,150.44,150.43,17.51022402]
[1745516423456,0.03,150.44,150.43,23.59912291]
[1745516424172,0.03,150.44,150.43,42.39093334]
[1745516424347,0.03,150.44,150.43,68.39093334]
[1745516424667,0.03,150.44,150.43,43.93473334]
[1745516424865,0.03,150.45,150.44,18.79181043]
[1745516425076,0.03,150.47,150.46,42.95151273]
[1745516426681,0.03,150.47,150.46,49.59779745]
[1745516427382,0.03,150.47,150.46,68.38960788]
[1745516430855,0.03,150.47,150.46,61.74332316]
[1745516431287,0.03,150.47,150.46,35.74332316]
[1745516431777,0.03,150.47,150.46,61.74332316]
[1745516434380,0.03,150.47,150.46,42.95151273]
[1745516438194,0.03,150.47,150.46,68.38960788]
[1745516442283,0.03,150.47,150.46,61.74332316]
[1745516442899,0.03,150.47,150.46,42.95151273]
[1745516445300,0.03,150.47,150.46,36.84772341]
[1745516445788,0.03,150.47,150.46,62.28581856]
[1745516446199,0.03,150.47,150.46,55.63953384]
[1745516446708,0.03,150.47,150.46,62.28581856]
[1745516449418,0.03,150.47,150.46,55.63953384]
[1745516449714,0.03,150.47,150.46,62.28581856]
[1745516449887,0.03,150.47,150.46,55.63953384]
[1745516450599,0.03,150.47,150.46,36.84772341]
[1745516452110,0.03,150.47,150.46,10.84772341]
[1745516455109,0.03,150.47,150.46,29.63953384]
[1745516456401,0.03,150.47,150.46,10.84772341]
[1745516457203,0.03,150.47,150.43,25.29716171]
[1745516457204,0.03,150.47,150.43,18.64964886]
[1745516457386,0.03,150.47,150.4,147.13607604]
[1745516457387,10.87772341,150.47,150.42,10.84772341]
[1745516457699,10.84772341,150.46,150.41,29.49737227]
[1745516457897,10.84772341,150.44,150.39,10.84772341]
[1745516458099,10.84772341,150.44,150.39,36.84772341]
[1745516458285,10.84772341,150.43,150.39,26.0]
[1745516458486,10.84772341,150.43,150.38,10.91072341]
[1745516459185,10.84772341,150.41,150.38,0.063]
[1745516459893,12.75735386,150.42,150.38,10.91072341]
[1745516460093,10.84772341,150.41,150.38,0.063]
[1745516460391,10.84772341,150.4,150.38,0.063]
[1745516460924,10.84772341,150.4,150.31,17.16477415]
[1745516460925,26.0,150.31,150.29,20.76119249]
[1745516461140,25.70772341,150.3,150.29,20.76119249]
[1745516461422,14.86,150.3,150.29,0.063]
[1745516462016,38.50627741,150.32,150.29,0.063]
[1745516462218,16.99358123,150.31,150.29,0.063]
[1745516463223,23.64652557,150.31,150.29,0.063]
[1745516464805,14.86,150.32,150.3,16.99358123]
[1745516464806,14.88,150.32,150.3,16.99358123]
[1745516464996,14.88,150.34,150.3,16.99358123]
[1745516465306,31.87358123,150.34,150.29,17.05658123]
[1745516465511,38.52559638,150.34,150.29,17.05658123]
[1745516465816,16.99358123,150.33,150.29,0.063]
[1745516466002,16.99358123,150.32,150.29,0.063]
[1745516466314,16.99358123,150.33,150.29,0.063]
[1745516467407,23.64694117,150.3,150.29,0.063]
[1745516469512,49.64694117,150.3,150.29,0.063]
[1745516471918,55.65334117,150.3,150.29,0.063]
[1745516474320,38.65975994,150.3,150.29,0.063]
[1745516474499,55.65334117,150.3,150.29,0.063]
[1745516475695,91.07855146,150.3,150.27,0.063]
[1745516476034,42.99358123,150.28,150.27,0.063]
[1745516476195,57.85358123,150.28,150.27,0.063]
[1745516477518,64.50782663,150.28,150.27,0.063]
[1745516483935,64.50782663,150.28,150.27,1e-08]
[1745516486238,83.29963706,150.28,150.27,1e-08]
[1745516486564,16.99358123,150.27,150.23,0.063]
[1745516486742,82.94166935,150.28,150.23,0.063]
[1745516486743,16.99358123,150.24,150.23,0.063]
[1745516488346,23.64959826,150.24,150.23,0.063]
[1745516488730,16.99358123,150.24,150.23,0.063]
[1745516490722,31.85358123,150.24,150.23,0.063]
[1745516494922,55.50317949,150.24,150.23,0.063]
[1745516495547,75.99299263,150.24,150.23,0.063]
[1745516496258,75.99299263,150.24,150.2,0.063]
[1745516496259,94.78480306,150.24,150.2,0.063]
[1745516496560,10.89539512,150.23,150.2,0.063]
[1745516496751,17.55185521,150.23,150.2,0.063]
[1745516497132,10.89539512,150.21,150.2,0.063]
[1745516497336,17.02779252,150.21,150.2,0.063]
[1745516500471,23.6851389,150.21,150.2,0.063]
[1745516507551,17.02779252,150.21,150.2,0.063]
[1745516507958,23.6851389,150.21,150.2,0.063]
[1745516513271,23.6851389,150.21,150.18,0.063]
[1745516513272,44.64964886,150.2,150.18,0.063]
[1745516513463,17.02779252,150.19,150.18,0.063]
[1745516514466,17.02779252,150.19,150.17,1e-08]
[1745516514467,18.79181043,150.18,150.17,1e-08]
[1745516514650,67.68739547,150.18,150.17,1e-08]
[1745516514862,50.65960295,150.18,150.17,1e-08]
[1745516515462,38.52646877,150.18,150.17,1e-08]
[1745516519546,32.40016559,150.18,150.17,1e-08]
[1745516521278,32.40016559,150.18,150.16,0.063]
[1745516521279,94.79793338,150.18,150.16,0.063]
[1745516521441,87.16656636,150.17,150.16,0.063]
[1745516521773,43.560609,150.17,150.16,0.063]
[1745516523266,17.560609,150.17,150.16,0.063]
[1745516523444,10.90148934,150.17,150.16,0.063]
[1745516523639,6.65792094,150.2,150.16,10.96448934]
[1745516523856,10.90148934,150.2,150.16,10.96448934]
[1745516524466,25.74148934,150.21,150.17,10.90148934]
[1745516525048,32.39884767,150.21,150.17,10.90148934]
[1745516525462,10.90148934,150.21,150.17,10.90148934]
[1745516526273,17.55892236,150.21,150.17,10.90148934]
[1745516526574,17.55892236,150.21,150.16,0.063]
[1745516526754,10.90148934,150.2,150.16,10.96448934]
[1745516527138,10.90148934,150.18,150.16,0.063]
[1745516527342,10.90148934,150.19,150.16,0.063]
[1745516527566,17.55892236,150.21,150.16,10.96448934]
[1745516527769,10.90148934,150.2,150.16,10.96448934]
[1745516527972,10.90148934,150.2,150.16,0.063]
[1745516529569,10.90148934,150.2,150.16,10.96448934]
[1745516529768,17.55892236,150.21,150.17,10.90148934]
[1745516531066,6.65743302,150.21,150.17,10.90148934]
[1745516532175,17.55892236,150.21,150.17,10.90148934]
[1745516533961,82.7,150.22,150.18,10.90148934]
[1745516534162,89.3569382,150.22,150.18,10.90148934]
[1745516534471,82.7,150.22,150.19,10.90148934]
[1745516534652,14.84,150.23,150.2,10.90148934]
[1745516534847,14.84,150.23,150.21,10.90148934]
[1745516535578,89.35577351,150.25,150.21,10.90148934]
[1745516535780,100.25726285,150.25,150.2,10.90148934]
[1745516537680,100.25726285,150.25,150.18,0.14216157]
[1745516537862,10.90148934,150.24,150.19,10.90148934]
[1745516538578,10.90148934,150.23,150.18,10.90148934]
[1745516538771,10.90148934,150.2,150.16,10.96448934]
[1745516538955,10.90148934,150.2,150.16,26.063]
[1745516539154,6.6582329,150.19,150.16,0.063]
[1745516539789,6.65779035,150.2,150.16,10.96448934]
[1745516541480,10.90148934,150.2,150.16,10.96448934]
[1745516542169,21.4769032,150.22,150.18,10.90148934]
[1745516542369,32.37839254,150.22,150.18,10.90148934]
[1745516542556,32.37839254,150.22,150.17,10.90148934]